{"text_format":"3","workbook":"xlsx","n_sheets":8,"sheets":["T2.22_Final BOQ","FINAL SUMMARY","C2_Pricing Data-fly","C2.1 Pricing Instructions","C2.2_Prelim Fly","C2.2_Notes to QS Prelims & Gen","C2.3_BOQ - Fly","UNPRICED BOQ"],"not_rendered":{"images":3,"external_links":7,"defined_names":27},"read":"whole","date_system":"1900"}

{"sheet":"T2.22_Final BOQ","index":0,"n_rows":19,"n_cols":9,"rows_kept":19,"merged":[[1,1,1,9],[3,1,6,2],[3,3,6,9],[7,1,7,2],[7,3,7,5],[7,6,7,7],[7,8,7,9],[18,1,18,9],[20,1,20,5],[22,1,22,5],[24,1,24,9],[26,1,27,9],[30,1,30,3],[30,4,30,9],[31,1,31,3],[31,4,31,9],[32,1,32,3],[32,4,32,9],[33,1,33,3],[33,4,33,9],[34,1,34,2]]}
[]
[null,"T2.22 - FINAL BILL OF QUANTITY SUMMARY"]
[]
[null,"Project title:",null,{"$f":"+'[1]Master Data'!E18","v":"ZNT 04280 W: DEPARTMENT OF HEALTH: MBONGOLWANE: WIMS NO. 056687: MBONGOLWANE HOSPITAL: PROVISION OF TWO BOREHOLES WITH BOOSTER PUMP AND WATER TREATMENT SYSTEM\t"}]
[]
[]
[]
[null,"Tender no:         ",null,{"$f":"+'[1]Master Data'!E13","v":"ZNTU 04280 W"},null,null,"Project Code:",null,{"$f":"+'[1]Master Data'!G13","v":"056687"}]
{"$rows_empty":10}
[null,"ATTACH SUMMARY PAGE OF THE BILL OF QUANTITIES"]

{"sheet":"FINAL SUMMARY","index":1,"n_rows":38,"n_cols":8,"rows_kept":38,"merged":[[0,0,0,8],[2,0,5,1],[2,2,5,8],[6,0,6,1],[6,2,6,4],[6,5,6,6],[6,7,6,8]]}
["T2.22 - FINAL BILL OF QUANTITY SUMMARY"]
[]
[{"$f":"'[1]T2.22_Final BOQ'!B4","v":"Project title:"},null,{"$f":"'[1]T2.22_Final BOQ'!D4","v":"ZNT 04280 W: DEPARTMENT OF HEALTH: MBONGOLWANE: WIMS NO. 056687: MBONGOLWANE HOSPITAL: PROVISION OF TWO BOREHOLES WITH BOOSTER PUMP AND WATER TREATMENT SYSTEM\t"}]
[]
[]
[]
[{"$f":"'[1]T2.22_Final BOQ'!B8","v":"Tender no:         "},null,{"$f":"'[1]T2.22_Final BOQ'!D8","v":"ZNTU 04280 W"},null,null,{"$f":"'[1]T2.22_Final BOQ'!G8","v":"Project Code:"},null,{"$f":"'[1]T2.22_Final BOQ'!I8","v":"056687"}]
{"$rows_empty":9}
["CONCRETE, FORMWORK AND REINFORCEMENT"]
[]
[]
["DRILLING "]
[]
[]
["PUMP TESTING"]
[]
[]
["WATER TREATMENT PLANT"]
[]
[]
["PUMP INSTALLATION"]
[]
[]
["WATER PURIFICATION"]
[]
[]
[]
[]
[]
[{"$nulls":6},"SUB TOTAL"]

{"sheet":"C2_Pricing Data-fly","index":2,"n_rows":16,"n_cols":1,"rows_kept":16,"merged":[[1,0,1,10],[15,0,15,9]]}
[]
[{"$f":"+'[1]Master Data'!ProjectTitle","v":"ZNT 04280 W: DEPARTMENT OF HEALTH: MBONGOLWANE: WIMS NO. 056687: MBONGOLWANE HOSPITAL: PROVISION OF TWO BOREHOLES WITH BOOSTER PUMP AND WATER TREATMENT SYSTEM\t"}]
{"$rows_empty":13}
["PART C2 - PRICING DATA"]

{"sheet":"C2.1 Pricing Instructions","index":3,"n_rows":91,"n_cols":15,"rows_kept":91,"merged":[[0,1,0,11],[2,1,2,3],[2,4,2,11],[3,1,3,3],[3,4,3,7],[3,8,3,9],[3,10,3,11],[5,1,5,11],[7,2,7,11],[9,2,9,11],[11,2,11,10],[13,2,13,11],[15,2,15,10],[17,2,17,11],[19,2,19,10],[20,2,20,11],[22,2,22,10],[23,2,23,11],[24,2,24,11],[25,2,25,10],[26,2,26,11],[28,2,28,10],[30,2,30,11],[32,2,32,11],[34,2,34,11],[36,2,36,10],[38,2,38,11],[39,2,39,11],[40,2,40,11],[42,2,42,11],[44,2,44,11],[45,2,45,11],[45,14,45,18],[46,2,46,11],[48,2,48,10],[50,2,50,11],[52,2,52,10],[54,3,54,11],[55,3,55,11],[56,3,56,11],[57,3,57,11],[58,2,58,11],[60,3,60,11],[61,3,61,11],[62,3,62,11],[63,3,63,11],[64,3,64,11],[64,12,64,21],[65,2,65,7],[65,8,65,11],[66,2,66,7],[66,8,66,11],[67,2,67,10],[68,2,68,11],[69,3,69,11],[70,3,70,11],[71,3,71,11],[72,4,72,11],[73,4,73,11],[74,4,74,11],[75,2,75,6],[75,7,75,11],[76,2,76,6],[76,7,76,11],[77,1,78,1],[77,2,78,11],[79,2,79,11],[79,12,79,20],[80,12,80,20],[81,2,81,11],[83,2,83,11],[83,12,83,20],[85,2,85,11],[87,2,87,11]]}
[null,"C2.1 PRICING INSTRUCTIONS\nGCC FOR CONSTRUCTION WORKS (Second Edition  2010)"]
[]
[null,"Project title:",null,null,{"$f":"+'[1]Master Data'!E18","v":"ZNT 04280 W: DEPARTMENT OF HEALTH: MBONGOLWANE: WIMS NO. 056687: MBONGOLWANE HOSPITAL: PROVISION OF TWO BOREHOLES WITH BOOSTER PUMP AND WATER TREATMENT SYSTEM\t"}]
[null,"Tender no:",null,null,{"$f":"+'[1]Master Data'!E13","v":"ZNTU 04280 W"},{"$nulls":3},"Project Code:",null,{"$f":"+'[1]Master Data'!G13","v":"056687"}]
[]
[null,"C2.1 Pricing Instructions"]
[]
[null,null,"Where any item is not relevant to this specific contract, such item is marked N/A (signifying “not applicable”)"]
[]
[null,null,"The adjustment of the preliminaries each item  priced is to be allocated to one or more of the three categories by insertion of “F”, “V”, “T” as the case may be against the price in the “rate” column immediately preceding the “amount” column, where “F” denotes a fixed amount (amount not varied), “V” denotes an amount variable in proportion to value and “T” denotes an amount variable in proportion to time."]
[]
[null,1,"MASSES AND MEASURING UNITS"]
[]
[null,null,"These shall be in accordance with the Measuring Units and National Measuring Standards Act No. 76 of 1973 and amendments thereto.\n\nThe pages of each of these documents are numbered consecutively and before the Tenderer submits his tender he should check the number of pages, and if any are found missing or duplicated, or the figures or writing indistinct, or the documents contain any obvious error, he should apply to the Head : Public Works AT ONCE and have same rectified as no liability whatsoever will be admitted by the Administration in respect of errors in Tender due to the foregoing."]
[]
[null,2,"PRICES FOR VARIATIONS"]
[]
[null,null,"Where prices or quotations for variations are submitted by the Contractor during the currency of the Contract, it is to be clearly understood that these are for the purpose of consideration by the Head : Public Works and that there is no assumption of acceptance.  The Contractor will be notified of acceptance of prices or quotations either by insertion of the amount on the variation order or by written intimation."]
[]
[null,3,"SCALE"]
[null,null,"The scale to which the Drawings are made is only to be made use of when no figured dimensions are given either on the Drawings or in the tender documents and the figured dimensions are always to be followed though they may not coincide with the scale of the Drawings, but dimensions where possible are to be taken from the buildings."]
[]
[null,4,"PROVISIONAL ITEMS"]
[null,null,"All items described as \"Provisional\" shall be used as directed by the Employer and measured and valued or paid for. \n\nNo work for which \"Provisional\" items are allowed shall be commenced without written instructions from the Head : Public Works."]
[]
[null,5,"TIMELY ORDERING OF MATERIALS"]
[null,null,"The Contractor is warned to place all orders for materials or special articles as early as possible, as he will be held solely responsible for any delay in the delivery of such goods.\nNevertheless this tender is conditional upon no liability being attached to the Contractor if delivery of materials is rendered impossible by reason of any act of the Government."]
[]
[null,6,"ELECTRICAL LIGHTING, POWER AND WATER REQUIREMENTS"]
[]
[null," ","The Contractor shall provide any artificial lighting which may be necessary or required for the proper execution of the works, and provide electric power and water required by all Sub-Contractors, Nominated Sub-Contractors and Sub-Contractors appointed directly by the Employer."]
[]
[null,null,"The Contractor shall give all notices and pay all fees in connection with temporary electrical and water connections and shall connect temporary Electrical and Water meters for and pay for all current and water consumed."]
[]
[null,null,"Tenderers are advised that the permanent light fittings and water points of any kind installed in the Works are not to be used to provide temporary lighting and supplement water requirements for construction purposes."]
[]
[null,7,"IMPORT PERMITS, DUTIES AND SURCHARGES."]
[]
[null,null,"All tenders by means of which imported products are being called for, must use the rate of exchange 14 days prior to the closing date indicated in the tender documents.  If this day falls on a weekend or public holiday, the next working day must be used."]
[null,null,"Furthermore, Tenderers must submit documentary proof (in the form of a certified copy) from their bank or legally recognised financial institution, clearly indicating what the rate of exchange was 14 days prior to the closing date, as mentioned above."]
[null,null,"Together with this, the Tenderer must confirm that the tender price relating to an imported product, was based on the rate of exchange 14 days prior to the closing date as mentioned above."]
[]
[null,8,"STANDARD SYSTEM OF MEASUREMENT WHERE BILLS OF QUANTITIES FORM PART OF THE TENDER DOCUMENTS"]
[]
[null,null,"The work executed under this Contract has been measured in accordance with the;"]
[null,null,{"$f":"IF('[1]Master Data'!E404=1,\"Standard System of Measuring Builders Work (6th Edition)\",IF('[1]Master Data'!E404=2,\"Standard System of Measuring Builders Work (7th Edition)\",IF('[1]Master Data'!E404=3,\"Standard System of Measuring Building Works for Small or Simple Buildings 1999\",IF('[1]Master Data'!E404=4,\"Civil Engineering Standard Method of Measurement Southern African (Edition 3)\",\"Other (Specify)\"))))","v":"Standard System of Measuring Builders Work (7th Edition)"},{"$nulls":11}," "]
[null,null,"including all amendments unless descriptions of items indicate a deviation and it shall be understood that the system of measurement which is herein adopted is the only system of measurement which will be recognised in connection with this contract. Any contradictions to this system of measurement contained in the “Model Preambles for Trades 2008” shall be disregarded (unless same have been accommodated in the system of measurement) but applicable rates shall be included for all requirements stated and not measured separately in compliance with this system."]
[]
[null,9,"PRICING OF ROCK EXCAVATIONS"]
[]
[null,null,"It is a condition of this tender that should the tenderer elect to price the Rock Excavation included in this tender, the rates must be market related and should be identically priced for the same classification of excavations and not vary for similar billed items in the different sections."]
[]
[null,10,"BROAD BASED BLACK ECONOMIC EMPOWERMENT"]
[]
[null,null,"1.                   ","It is the deliberate policy of the Provincial Administration of KwaZulu-Natal to foster and to encourage the economic empowerment of Black South Africans. This policy will be implemented without prescription and without prejudicing the principles and the integrity of the Provincial Administration of KwaZulu-Natal. Subject to these constraints and also subject to good business practise and commercial consideration, it is therefore considered appropriate that the Provincial Administration of KwaZulu-Natal should encourage business relationships with companies which actively pursue Affirmative Action and Black Economic Empowerment Programmes. "]
[null,null,"2.                   ","In responding to this tender you are therefore encouraged to devote attention to these two subjects of Affirmative Action and Economic Empowerment. In addition, in considering the appointment of sub-contractors, you are requested to extend the spirit of these policies."]
[null,null,"3.                   ","The foregoing enunciations of this policy are not intended to be prescriptive nor to preclude any individual or operation from responding to this tender."]
[]
[null,11,"REGISTRATION ON THE CENTRAL SUPPLIERS DATABASE"]
[]
[null,null,"1.                   ","In terms of the Public Finance Management Act (PFMA), 1999 (Act No 1 of 1999) Section 38 (1) (a) (iii) and 51 (1) (iii) and Section 76 (4) of PFMA National Treasury developed a single platform, The Central Supplier Database (CSD) for the registration of prospective suppliers including the varification functionality of key supplier information."]
[null,null,"2.                   ","Prospective suppliers will be able to self - register on the CSD website: www.csd.gov.za"]
[null,null,"3.                   ","Once the supplier information has been varified with external data sources by National Treasury a unique supplier number and security code will be allocated  and communicated to the supplier. Suppliers will be required to keep their data updated regularly and should confirm at least once a year that their data is still current and updated."]
[null,null,"4.                   ","Suppliers can provide their CSD supplier number and unique security code to organs of state to view their varified CSD information."]
[null,null,5,"Tenderers are required to fill in clearly, legibly, in bold print and black ink their CSD supplier number in the space hereunder:"]
[null,null,"Name of Supplier"]
[null,null,"Central Supplier Database (CSD) Supplier Number:"]
[null,12,"TAX CLEARANCE REQUIREMENTS"]
[null,null,"It is a condition of tender that the taxes of the successful tenderer must be in order, or that satisfactory arrangements have been made with South African Revenue Service (SARS) to meet the Tenderder’s tax obligations. It is a condition of this Offer of Commission that your practice remains in good standing with SARS (South African Revenue Services) in terms of its tax clearance, during the project, which is required to process your payment certificates."]
[null,null,1,"In order to meet this requirement tenderers are required to apply via e-filing at any SARS branch office nationally. The Tax Complance Status (TCS)  requirements are also applicable to foreign Tenderders / individuals who wish to submit Tenders."]
[null,null,2,"SARS will then furnish the Tenderder with a Tax Compliance Status (TCS) PIN that will be valid for a period of 1 (one) year from the date of approval."]
[null,null,3,"In tenders where Consortia / Joint Ventures / Sub-contractors are involved, each party must submit a separate Tax Compliance Status (TCS) PIN."]
[null,null,4,null,"Application for Tax Compliance Status (TCS) PIN can be done via e-filing at any SARS branch office nationally or on the website www.sars.gov.za."]
[null,null,5,null,"Tax Clearance Certificates may be printed via eFiling. In order to use this provision, taxpayers will need to register with SARS as eFilers through the website www.sars.gov.za."]
[null,null,6,null,"Tax Clearance Certificates may be printed via eFiling. In order to use this provision, taxpayers will need to register with SARS as eFilers through the website www.sars.gov.za."]
[null,null,"Security PIN Number"]
[null,null,"Company / Entity Tax Reference Number"]
[null,13,"BILLS OF QUANTITIES/LUMP SUM DOCUMENT"]
[]
[null,null,{"$f":"+'[1]Master Data'!D619","v":"The Bills of Quantities document forms part of and must be read and priced in conjunction with all the other documents forming part of the contract documents, the Standard Conditions of Tender, Conditions of Contract, Standard Preambles to all Trades, Specifications, Drawings and all other relevant documentation."},{"$nulls":9},"The latest Standard for Uniformity in Construction Procurement published in terms of the Construction Industry Development Board (CIDB) Act, 2000 (Act no. 38 of 2000), the Standardized Construction Procurement Documents for Engineering and Construction Works as issued by the CIDB and any other relevant documentation pertaining thereto must be studied and all principles in this regard must be applied to all procurement documentation, practices and procedures."]
[null," ",{"$nulls":10},"The consultant(s)/project manager must acquaint themselves fully with all relevant matters pertaining to this section in order to enable prospective Tenderders to price for all eventualities."]
[null,14,"VALUE ADDED TAX"]
[]
[null,null,{"$f":"+'[1]Master Data'!D621","v":"The tender price must include for Value Added Tax (VAT). All rates, provisional sums, etc. in the Bills of Quantities must however be net (exclusive of VAT) with VAT calculated and added to the Total Value thereof in the Final Summary."},{"$nulls":9},"The following items must be Included in this Pricing Instruction. Any additional items deemed necessary must be included herein"]
[null," "]
[null,15,"FIXED PRICE CONTRACT"]
[]
[null,null,{"$f":"+'[1]Master Data'!D623","v":"Should the Bills of Quantities/Lump Sum Document be a fixed price contract, the following clause must be inserted in the Pricing Instructions:\n\nTenderders are to take note that the contract price adjustments are not applicable to this contract. Tenderders should therefore make provision in the Contract Sum, schedule of rates, etc. for possible price increases during the contract period, as no claims in this regard shall be entertained."}]
[]
[]
[{"$nulls":4}," "]

{"sheet":"C2.2_Prelim Fly","index":4,"n_rows":16,"n_cols":1,"rows_kept":16,"merged":[[1,0,1,10],[15,0,15,9]]}
[]
[{"$f":"+'[1]Master Data'!ProjectTitle","v":"ZNT 04280 W: DEPARTMENT OF HEALTH: MBONGOLWANE: WIMS NO. 056687: MBONGOLWANE HOSPITAL: PROVISION OF TWO BOREHOLES WITH BOOSTER PUMP AND WATER TREATMENT SYSTEM\t"}]
{"$rows_empty":13}
["C2.2 - Preliminaries for GCC for Construction works - 2nd Edition 2010 "]

{"sheet":"C2.2_Notes to QS Prelims & Gen","index":5,"n_rows":634,"n_cols":9,"rows_kept":634,"merged":[[0,0,0,4],[2,7,2,11],[3,7,3,11],[4,7,4,11],[5,7,5,11],[6,7,11,11],[285,1,286,1],[578,0,578,5],[580,0,580,5],[581,0,581,1],[581,4,581,5],[630,0,630,1],[631,0,631,5],[632,0,632,5],[633,0,633,1]]}
[{"$f":"+'[1]Master Data'!E18","v":"ZNT 04280 W: DEPARTMENT OF HEALTH: MBONGOLWANE: WIMS NO. 056687: MBONGOLWANE HOSPITAL: PROVISION OF TWO BOREHOLES WITH BOOSTER PUMP AND WATER TREATMENT SYSTEM\t"}]
[null,"BILL NO. 1  "]
[null,"C2 .2 PRELIMINARY AND GENERAL"]
[null,"NOTES  ","UNIT","QUANTITY","RATE","AMOUNT"]
[]
["i)","The agreement is to be the General Conditions of Contract for Works of Civil Engineering Construction (2010) (Second Edition) , published by the S. A. Institution Of Civil Engineering."]
[]
["ii)","The Preliminaries are to be the Construction and management requirements for works contracts - Part 1: General engineering and construction works (SANS 1921-1: 2004 Edition 1) prepared by Standards South Africa and shall be deemed  to be incorporated herein."]
[]
["iii)","Tenderers are referred to the abovementioned  documents for the full intent and meaning of each  clause thereof (hereinafter referred to by heading and  clause number only) for which such allowance must be  made as may be considered necessary."]
[]
[]
["iv)","Where standard clauses or alternatives are not  entirely applicable to this contract such modifications,  corrections or supplements as will apply are given  under each relevant clause heading."]
[]
["v) ","Where any item is not relevant to this specific  contract such item is marked N/A (signifying \"not  applicable\")."]
[]
["vi)","Adjustment of the preliminaries:  each item priced, is to be allocated to one or more of  the three categories, where \"F\" denotes a fixed amount  (amount not to be varied), \"V\" denotes an amount  variable in proportion to value and \"T\" denotes an  amount in proportion to time."]
[]
["vii)","Time (T) related Preliminaries will only be adjusted for omissions or additions, issued by the Employer, or delays caused by the Employer, for which variation and extension of time has been granted. See Contract Data."]
[]
[null,"SECTION A:  GENERAL CONDITIONS OF CONTRACT"]
[]
["A1","General (clause 1) "]
[null,"F:............................. V:............................ T:............................ ","Item"]
[]
["A2","Basis of Contract (clause 2) "]
[null,"F:............................. V:............................ T:............................ ","Item"]
[]
["A3","Engineer (clause 3) "]
[null,"F:............................. V:............................ T:............................ ","Item"]
[]
["A4","Contractor's General Obligation (clause 4) "]
[null,"F:............................. V:............................ T:............................ ","Item"]
[null," "]
["A5","Time and Related Matters (clause 5) - As referred to in the Contract Data under Special Condition of Contract. The Contract Period shall be deemed to include all Non – Working Days, Special Non – Working Days and the year-end Builders Annual Industry Holiday Periods. "]
[null,"\nF:............................. V:............................ T:............................ \n","Item"]
[null,"Carried forward to collection",null,null,"R"]
[]
[null,null,"UNIT","QUANTITY","RATE","AMOUNT"]
["A6","Payment and Related Matters (clause 6) "]
[null,"F:............................. V:............................ T:............................ ","Item"]
[null," "]
["A7","Quality and Related Matters (clause 7) "]
[null,"F:............................. V:............................ T:............................ ","Item"]
[]
["A8","Risk and Related Matters (clause 8) "]
[null,"F:............................. V:............................ T:............................ ","Item"]
[null," "]
["A9","Termination of Contract (clause 9) "]
[null,"F:............................. V:............................ T:............................ ","Item"]
[null," "]
["A10","Claims and Disputes (clause 10) "]
[null,"F:............................. V:............................ T:............................ ","Item"]
[null," "]
[]
[null,"SECTION B:   SANS 1921-1:2004 (Edition 1):  CONSTRUCTION AND MANAGEMENT REQUIREMENTS FOR WORKS CONTRACTS:  PART 1"," "]
[null,"Refer to  the  SCOPE OF WORK for detail requirements:"]
[]
["B1","Scope"," "]
[null,"F:............................. V:............................ T:............................ ","Item"]
[]
["B2","Normative references"," "]
[null,"F:............................. V:............................ T:............................ ","Item"]
[]
["B3","Definitions"," "]
[null,"F:............................. V:............................ T:............................ ","Item"]
[null," "]
["B4","Requirements for construction and management"," "]
[null,"F:............................. V:............................ T:............................","Item"]
[]
["B4.1","General"," "]
[null,"F:............................. V:............................ T:............................ ","Item"]
[]
["B4.2","Responsibilities for design and construction"]
[null,"F:............................. V:............................ T:............................ ","Item"]
[]
["B4.3","Planning, programme and method statements"]
[null,"F:............................. V:............................ T:............................ ","Item"]
[null,null," "]
[null,"Carried forward to collection",null,null,"R"]
[]
[null,null,"UNIT","QUANTITY","RATE","AMOUNT"]
[" "," "]
["B4.4","Quality assurance"]
[null,"F:............................. V:............................ T:............................ ","Item"]
[null," "]
["B4.5","Setting out"]
[null,"F:............................. V:............................ T:............................ ","Item"]
[null," "]
["B4.6","Management and disposal of water"]
[null,"F:............................. V:............................ T:............................ ","Item"]
[null," "]
["B4.7","Blasting"]
[null,"F:............................. V:............................ T:............................ ","Item"]
[null," "]
["B4.8","Works adjacent to services and structures"]
[null,"F:............................. V:............................ T:............................ ","Item"]
[null," "]
["B4.9","Management of the Works and site"]
[null,"F:............................. V:............................ T:............................ ","Item"]
[null," "]
["B4.10","Earthworks"]
[null,"F:............................. V:............................ T:............................ ","Item"]
[]
["B4.11","Testing"]
[null,"F:............................. V:............................ T:............................ ","Item"]
[]
["B4.12","Materials, samples and fabrication drawings"]
[null,"F:............................. V:............................ T:............................ ","Item"]
[]
["B4.13","Equipment"]
[null,"F:............................. V:............................ T:............................ ","Item"]
[]
["B4.14","Site establishment"]
[null,"F:............................. V:............................ T:............................ ","Item"]
[]
["B4.15","Survey control"]
[null,"F:............................. V:............................ T:............................ ","Item"]
["B4.16","Temporary works"]
[null,"F:............................. V:............................ T:............................ ","Item"]
[]
[null,"Carried forward to collection",null,null,"R"]
[]
[null,null,"UNIT","QUANTITY","RATE","AMOUNT"]
[]
["B4.17","Existing services"]
[null,"F:............................. V:............................ T:............................ ","Item"]
[]
["B4.18","Health and safety"]
[null,"F:............................. V:............................ T:............................ ","Item"]
[]
["B4.19","Environmental requirements"]
[null,"F:............................. V:............................ T:............................ ","Item"]
[null," "]
["B4.20","Alterations, additions, extensions and modifications to existing works"]
[null,"F:............................. V:............................ T:............................ ","Item"]
[]
["B4.21","Inspection of adjoining structures, services, buildings and property"]
[null,"F:............................. V:............................ T:............................ ","Item"]
[null," "]
["B4.22","Attendance on nominated and selected subcontractors"]
[null,"F:............................. V:............................ T:............................ ","Item"]
[null," "]
[null,"SECTION C: SCOPE OF WORK in accordance with SANS 10403"]
[null,"(The reference to Clauses refer to Table B.1 of SANS 1921-1:2004)"]
["C1","Certification by recognised bodies - CLAUSE 4.4"]
[null,"F:............................. V:............................ T:............................ ","Item"]
[null," "]
["C2","Agrément certificates - CLAUSE 4.5"]
[null,"F:............................. V:............................ T:............................ ","N/A"]
["C3","Other services and facilities - CLAUSE 4.8"]
[null,"F:............................. V:............................ T:............................ ","Item"]
["C4","Recording of weather - CLAUSE 5.2"]
[null,"F:............................. V:............................ T:............................ ","Item"]
[]
["C5","Management meetings - CLAUSE 5.3"]
[null,"F:............................. V:............................ T:............................ ","Item"]
["C6","Daily records CLAUSE 5.6"]
[null,"F:............................. V:............................ T:............................ ","Item"]
["C7","Bond and guarantees - CLAUSE 5.7"]
[null,"F:............................. V:............................ T:............................ ","Item"]
[]
[null,"Carried forward to collection",null,null,"R"]
[]
[null,null,"UNIT","QUANTITY","RATE","AMOUNT"]
[]
["C8","Permits - CLAUSE 5.9"]
[null,"F:............................. V:............................ T:............................ ","Item"]
[]
["C9","Proof of compliance with the law - CLAUSE 5.10"]
[null,"F:............................. V:............................ T:............................ ","Item"]
[]
[null," SECTION D: SPECIFICATION DATA ASSOCIATED WITH SANS 1921-1:2004 (Table A.1)"]
[]
["D1","Requirements for drawings, information and calculations for which the contractor is responsible CLAUSE 4.1.7"]
[null,"F:............................. V:............................ T:............................ ","Item"]
[]
["D2","The responsibility strategy assigned to the contractor for the works  CLAUSE 4.2.1"]
[null,"F:............................. V:............................ T:............................ ","Item"]
[]
["D3","The planning, programme and method statements - CLAUSE 4.3"]
[null,"F:............................. V:............................ T:............................ ","Item"]
[]
["D4","Samples of materials, workmanship and finishes - CLAUSE 4.12.1"]
[null,"F:............................. V:............................ T:............................ ","Item"]
["D5","Fabrication drawings that the contractor is to provide and deliver to the employer  - CLAUSE 4.12.2"]
[null,"F:............................. V:............................ T:............................ ","Item"]
[]
["D6","Office for the foreman CLAUSE 4.14.3"]
[null,"F:............................. V:............................ T:............................ ","Item"]
[]
["D7","Telephone -  CLAUSE 4.14.3"]
[null,"F:............................. V:............................ T:............................ ","Item"]
[]
["D8","Office for inspector of works  -  CLAUSE 4.14.3"]
[null,"F:............................. V:............................ T:............................ ","Item"]
["D9","Telephone in office for inspector of works  -  CLAUSE 4.14.3"]
[null,"F:............................. V:............................ T:............................ ","Item"]
[]
["D10","Sheds  -  CLAUSE 4.14.3"]
[null,"F:............................. V:............................ T:............................ ","Item"]
[]
[null,"Carried forward to collection",null,null,"R"]
[]
[null,null,"UNIT","QUANTITY","RATE","AMOUNT"]
[]
["D11","Provision and erection of signboards - CLAUSE 4.14.6"]
[null,"F:............................. V:............................ T:............................ ","Item"]
[]
["D12","Termination, diversion or maintenance of existing services - CLAUSE4.17.1"]
[null,"F:............................. V:............................ T:............................ ","Item"]
[]
["D13","Services which are known to exist - CLAUSE 4.17.3"]
[null,"F:............................. V:............................ T:............................ ","Item"]
[]
["D14","Detection apparatus - CLAUSE 4.17.4"]
[null,"F:............................. V:............................ T:............................ ","Item"]
[]
["D15","Additional health and safety requirements - CLAUSE 4.18"]
[null,"\nF:............................. V:............................ T:............................ ","Item"]
[]
[null,"SECTION E: SPECIFIC PRELIMINARIES"]
[null,"Section E contains Specific Preliminary items which apply to this contract except where \"N/A\" (Not Applicable) appears against the item."]
["E1","PROPRIETARY BRANDED PRODUCTS "]
[]
[null,"The contractor shall take delivery of, handle, store, use apply and/or fix all proprietary branded products in strict accordance with the manufacturers' instruction after consultation with the manufacturer's authorised representative."]
[null,"F:............................. V:............................ T:............................ ","Item"]
[null," "]
["E2","OVERTIME "]
[]
[null,"Should overtime be required to be worked for any reason whatsoever, the costs of such overtime are to be borne by the Contractor unless the Engineer/Principal Agent has specifically authorised in writing, prior to the execution thereof, that costs for such overtime are to be borne by the Employer."]
[null,"F:............................. V:............................ T:............................ ","Item"]
[null," "]
["E3","AS BUILT DRAWINGS "]
[]
[null,"The position of construction breaks and the extent of individual concrete pours are to be recorded by the Contractor on the Structural Engineer's drawings and are to be submitted to the Engineer/Principal Agent and the Structural Engineer for their records. "]
[null,"F:............................. V:............................ T:............................ ","Item"]
[null,"Carried forward to collection",null,null,"R"]
[null,"SECTION  E: SPECIFIC PRELIMINARIES"]
[null,null,"UNIT","QUANTITY","RATE","AMOUNT"]
["E4","SITE INSTRUCTIONS "]
[]
[null,"Site Instructions issued on site are to be recorded in triplicate in a Site Instruction book which is to be maintained on site by the Contractor."]
[null,"F:............................. V:............................ T:............................ ","Item"]
[]
["E5","LABOUR RECORD "]
[]
[null,"At the end of each week the Contractor shall provide the Engineer/Principal Agent with a written record, in schedule form, reflecting the number and description of tradesmen and labourers employed by him and all sub-contractors on the works each day."]
[null,"F:............................. V:............................ T:............................ ","Item"]
[null,"Note: In the event that the contractor fails to satisfy the requirements of this specification, the Employer (Head: Public Works) may apply any of the sanctions provided in the contract. Sanctions may include the application of a financial penalty of .04% of the Contract Sum per calendar day of which the required report has not been submitted."]
["E6","PLANT RECORD "]
[null,"At the end of each week the Contractor shall provide the Engineer/Principal Agent with a written record, in schedule form, reflecting the number, type and capacity of all plant, excluding hand tools,  currently used on the works."]
[null,"F:............................. V:............................ T:............................ ","Item"]
[]
["E7","NON CESSION OF MONIES "]
[]
[null,"The Contractor shall not cede nor assign his rights or claims to any monies due or to become due under this contract."]
[null,"F:............................. V:............................ T:............................ ","Item"]
[]
["E8","SECTIONAL COMPLETION "]
[]
[null,"When it is required that the contract be executed in sections or portions, the tenderer shall allow for all costs in this regard as no claim for additional costs will be entertained."]
[null,"F:............................. V:............................ T:............................ ","Item"]
[]
["E9","LOCAL LABOUR"]
[]
[null,"It is a general requirement of this contract that persons normally resident in the locality of the works (Local Labour) be given preference for employment on the contract. Provided, however, that should adequate and appropriate Labour not be available within the locality, others may be employed subject to satisfactory proof being provided that every reasonable endeavour has been made to employ Local Labour. The Contractor shall identify the local community leaders with the purpose of negotiating with them regarding the utilization of Local Labour in the construction process. In this regard, the Contractor shall furthermore give preference, wherever possible to the employment of single heads of households, women and youth. The Contractor shall, in general, maximize the involvement of the local community."]
[null,"F:............................. V:............................ T:............................ ","Item"]
[null,"Carried forward to collection",null,null,"R"]
[]
[null,null,"UNIT","QUANTITY","RATE","AMOUNT"]
["E10","IMPORT PERMITS AND DUTIES"]
[null,"The responsibility for obtaining the necessary import permits shall rest with the successful Tenderer.  No foreign exchange will be arranged or provided by the Administration."]
[null,"Tenderers are to allow in their tenders and pay the ordinary levy imposed on imported items in terms of item 196.10 of Part 8 of Schedule No. 1 of the Customs and Excise Act, 1964 with effect from 1 October 1989."]
[null,"F:............................. V:............................ T:............................ ","Item"]
[]
["E11","CONTRACT PRICE ADJUSTMENT PROVISIONS (CPAP)"]
[]
[null,"Notwithstanding anything to the contrary contained in the  GCC for Construction Works 2010 2nd Edition, this Contract shall only when the Construction Period exceeds 6 months and the Contract sum exceeds R1,000,000,00  be subject to the Contract Price Adjustment Provisions Indices Application Manual for use with P0151 indices (CPAP) (Revised 1 January 2013) as published by Statistics South Africa. Tenderers are advised that with reference to Clause 3.4.6 of the Contract Price Adjustment Provisions (CPAP) Indices Applications Manual, the Head: Public Works will not accept the submission by Tenderers of lists of  additional items.",{"$nulls":6},"Contract Price Adjustment Provisions (CPAP) Indices Application Manual for use with P0151 indices   (Revised 1 January 2013)\" as published by Statistics South Africa. The Contract Price Adjustment Provision (CPAP) will be subject to the most recently released indices by Statistic South Africa. Tenderders are advised that with reference to Clause 3.4.6 of the Contract Price Adjustment Provisions (CPAP) Indices Applications Manual, the Head: Public Works will not accept the submission by Tenderders of lists of additional items.\""]
[null,"Where this contract is a Lump Sum contract, the contract will be subject to Contract Price Adjustment Provisions (CPAP) only where the contract period equals or exceeds 6 calendar months. The applicable work group shall be WG 180 for domestic buildings or WG 181 for commercial and industrial buildings."]
[null,"F:............................. V:............................ T:............................ ","Item",""]
[]
["E12",{"$f":"+'[1]EPWP Con&Spec'!B5:K5","v":" EPWP CONDITIONS AND SPECIFICATIONS"}]
[null,"12.1 EMPLOYMENT TARGETS"]
[null,{"$f":"+'[1]EPWP Con&Spec'!B7:K7","v":"E12.1 a Employment Targets"},{"$nulls":6}," "]
[null,{"$f":"+'[1]EPWP Con&Spec'!B8:K8","v":"The contractor needs to provide a realistic estimate on the number of jobs that the project has the potential to create throughout the project duration as the project will be implemented using labour intensive construction methods on elements where it is economical and feasible for this construction method."},{"$nulls":6}," "]
[]
[]
[null,"No of jobs to be created = ………. [Contractor to fill in an estimated number]"]
[]
[null,"F:............................. V:............................ T:............................ ","Item"]
[]
[null,{"$f":"+'[1]EPWP Con&Spec'!B11:K11","v":"E12.1 b Employment requirements"}]
[null,{"$f":"+'[1]EPWP Con&Spec'!B12:K12","v":"Tenderers are advised that this contract will be subject to the Expanded Public Works Program (EPWP) aimed at alleviating and reducing unemployment."}]
[null,{"$f":"+'[1]EPWP Con&Spec'!B14:K14","v":"Tenderers must allow for any costs for the employement of unskilled labour as per the requirements of the EPWP program;"}]
[]
[null,{"$f":"+\"1. \"&+'[1]EPWP Con&Spec'!C15&\"\"","v":"1. 55% of unskilled labour to be women"}]
[null,{"$f":"+\"2. \"&+'[1]EPWP Con&Spec'!C16&\"\"","v":"2. 55% of unskilled labour to be youth aged between 18 and 35 years"}]
[null,{"$f":"+\"3. \"&+'[1]EPWP Con&Spec'!C17&\"\"","v":"3. 2% of unskilled labour to be people living with disability "}]
[null,{"$f":"+\"4. \"&+'[1]EPWP Con&Spec'!B19*100&\"%  \"&+'[1]EPWP Con&Spec'!C19&\" \"","v":"4. 100%  Unskilled labour utilised must reside within the boundries of the Municipality Ward where this contract is executed, with preference to the local community closest or at the walking distance to the contract site. Wherever possible local skilled tradesmen are to be employed on this contract with the view to maximize utilization of local resources. "},{"$nulls":6}," "]
[]
[null,"F:............................. V:............................ T:............................ ","Item"]
[null,"Carried forward to collection",null,null,"R"]
[]
[null,null,"UNIT","QUANTITY","RATE","AMOUNT"]
[]
[null,{"$f":"+'[1]EPWP Con&Spec'!B23:K23","v":"E12.1 c Labour rate and payment intervals"}]
[null,{"$f":"+'[1]EPWP Con&Spec'!B24:K24","v":"The contractor should ensure that labour rate paid to unskilled local labour is commensurate to the daily task. When determining the rate, consideration should be given to that EPWP beneficiaries are mostly bread winners in their families, as the program intends alleviating poverty. There should also be consideration that the labour rate promotes creation of expanded number of jobs created and person days of work."}]
[null,{"$f":"+'[1]EPWP Con&Spec'!B26:K26","v":"Contractors should make endeavours to ensure that labourers, particularly unskilled are remunerated on fortnight basis and prior notification be made should there be a shortfall on their wages."}]
[null,{"$f":"+'[1]EPWP Con&Spec'!B28:K28","v":"The labour rate for local unskilled shall also be determined in consideration of the location of the project, i.e. for projects implemented in urbanized municipalities will not be the same as that for rural municipalities."}]
[]
[null,"F:............................. V:............................ T:............................ ","Item"]
[]
[null,"12.2 LABOUR INTENSIVE CONSTRUCTION METHOD"]
[null,{"$f":"+'[1]EPWP Con&Spec'!B31:K31","v":"E12.2 a Labour Intensive Construction (LIC) method"}]
[null,{"$f":"+'[1]EPWP Con&Spec'!B32:K32","v":"On site there must a person(s) having competency in managing and implementing LIC methods."}]
[null,{"$f":"+'[1]EPWP Con&Spec'!B33:K33","v":" *Foreman @ NQF Level 4 the Unit Standard on Implementing LIC methods on site."}]
[null,{"$f":"+'[1]EPWP Con&Spec'!B34:K34","v":"*Site Agent/ Managers @ NQF level  5 the Unit Standard on Manage Labour-Intensive Skills Programme both must be CETA accredited"}]
[]
[null,"F:............................. V:............................ T:............................ ","Item"]
[]
[null,{"$f":"+'[1]EPWP Con&Spec'!B37:K37","v":"E12.2 b Labour Intensive Construction Method"}]
[null,{"$f":"+'[1]EPWP Con&Spec'!B38:K38","v":"Those parts of the contract to be constructed using Labour Intensive methods will be marked in the BoQ with letter LI (indicating Labour Intensive) against every item so designated. Such works will only be constructed using method so indicated. "}]
[]
[null,{"$f":"+'[1]EPWP Con&Spec'!B39:K39","v":"Reference to be made to Guidelines for the implementation of Labour Intensive Infrastructure projects under EPWP. \"Scope of Work in Respect of Work Relating to the Expanded Public Works Programme (EPWP)\""}]
[null,"F:............................. V:............................ T:............................ ","Item"]
[]
[null,{"$f":"+'[1]EPWP Con&Spec'!B42:K42","v":"E12.3 RECORD KEEPING"}]
[null,{"$f":"+'[1]EPWP Con&Spec'!B43:K43","v":"12.3.1 Every employer must keep in the project site office the following  minutes of site progress minutes; contractors’ monthly site progress reports; accurately recorded attendance register; proof of payment as means to verify authenticity of data in the EPWP Beneficiary form submitted with payment certificates. Copies of submitted EPWP beneficiary data forms should also be kept in the site office."}]
[null,"F:............................. V:............................ T:............................ ","Item"]
[]
[null,{"$f":"+'[1]EPWP Con&Spec'!B46:K46","v":"12.3.2 The employer must keep this record for a period of at least three (3) years after the completion of the project in his/her office as the project site office would have been relocated."}]
[null,{"$f":"+'[1]EPWP Con&Spec'!B47:K47","v":"This should be safely kept for job creation data verifications and periodical audits on projects conducted by National and Provincial  Department of Public Works  after one (1) or two (2) quarters of submitting captured EPWP Data to the National EPWP coordinating Department.  "}]
[null,"F:............................. V:............................ T:............................ ","Item"]
[]
[null,"Carried forward to collection",null,null,"R"]
[]
[null,null,"UNIT","QUANTITY","RATE","AMOUNT"]
[null,{"$f":"+'[1]EPWP Con&Spec'!B50:K50","v":"E12.4 EPWP REPORTING as per EPWP DATA FORM"}]
[null,{"$f":"+'[1]EPWP Con&Spec'!B51:K51","v":"At the end of each month as part of site progress report and to be attached to every contractors’ progress payment certificate; the contractor shall provide the principal agent & Public Works with a written records, as per EPWP data form; which will be reflecting, beneficiaries full name & surname; ID No and job description of labour employed by main contractor and sub-contractors on site. At the end of each month the contractor must submit the following documents to be attached to the Progress payment certificate:\n1. EPWP monthly data collection form \n2. Worker monthly payment upload\n3. Worker monthly proof of payment  i.e \n3.1 Acknowledgement of receipt of payment or\n3.2 Payslips \n3.3 Bank statement highlighted the workers paid \n4. Worker monthly training form \n5. Monthly attendance register\n6. Certified copies of ID’s (once off)\n7. ID size photos (once off)\n8. Proof of UIF \n9. Proof of COIDA"}]
[null,"F:............................. V:............................ T:............................ ","Item"]
[]
[null,{"$f":"+'[1]EPWP Con&Spec'!B54:K54","v":"E12.5 EPWP PROMOTION"}]
[null,{"$f":"+'[1]EPWP Con&Spec'!B55:K55","v":"12.5.1 EPWP signage board"}]
[null,{"$f":"+'[1]EPWP Con&Spec'!B56:K56","v":"EPWP Program at the project level shall always be promoted through have the projects signage board that embrace EPWP logo at the bottom, correct measurement for this signage board will be provided by the project leader during the site handing over meeting. the standard \"HELVETIVA MEDUIM \" letters are to be used . Professional title to be 10 mm above line . Line thickness to be 8 mm thick . Space between bottom of the line and bottom of the lettering below the line has to be 100 mm. Letter sizes are as follows : Helvetica meduim 100 mm black upper case to be for project name and owner . Helvetica meduim 75mm black upper case only to be used for professional titles.Project name and owner shall be black lettering on white background.board sizes are as follows : Board to be minomum 2000mm from ground level and to be constructed from reinforced formed chromadek panels minimum 0,6mm thick chromadek. The contractor is responsible for ensuring that the project board remains neatly and safely erected for the full duration including maintenance period,after which the project board and post are to be dismantled and handed to the client in good order.       "}]
[null,"F:............................. V:............................ T:............................ ","Item"]
[]
[null,{"$f":"+'[1]EPWP Con&Spec'!B59:K59","v":"12.5.2 Branding of labour apparel"}]
[null,{"$f":"+'[1]EPWP Con&Spec'!B60:K60","v":"Contractor & Sub-contractors’ labourers shall be provided with EPWP branded Personal Protective Equipment (PPE), reflector vest with EPWP wording at the back is an ideal and cost effective means of promoting program on site."}]
[null,{"$f":"+'[1]EPWP Con&Spec'!B61:K61","v":"The contractor is then advised to price for both item 17.5.1 and 17.5.2"}]
[null,"F:............................. V:............................ T:............................ ","Item"]
[]
[null,{"$f":"+'[1]EPWP Con&Spec'!B64:K64","v":"E12.6 COMMUNITY LIAISON OFFICER (CLO)"}]
[null,{"$f":"+'[1]EPWP Con&Spec'!B65:K65","v":"UTILISATION OF A COMMUNITY LIAISON OFFICER "}]
[null,"In addition to the requirements of Clause E9, contained in this document; "]
[null,{"$f":"+'[1]EPWP Con&Spec'!B66:K66","v":"The Contractor shall allow for and pay any and all costs necessary for the engagement of the services of a Community Liaison Officer (CLO) for the full duration of this contract"}]
[null,"In the interest of providing a sound service to both the community and the Contractor, a CLO may only manage one project at a given time."]
[null,{"$f":"+'[1]EPWP Con&Spec'!B68:K68","v":"A CLO will be identified by the local structures of the ward areas and appointed following fair and transparent interviewing process, to be conducted in the presence of local structures and the contractor representative, in order to assist the Contractor in the procurement of any local labour, etc. required for this project. The Contractor is to liaise with the CLO and afford him any assistance needed in ensuring sound working relations with the local community."}]
[null,{"$f":"+'[1]EPWP Con&Spec'!B70:K70","v":"Key Responsibilities of the CLO are envisaged to include and not necessary be limited to:"}]
[null,{"$f":"+'[1]EPWP Con&Spec'!B71:K71","v":"1. Assisting local leadership in conducting skills and resources audit which facilitates sourcing labour from within the ward or targeted areas for employment, as required by contractor."}]
[null,{"$f":"+'[1]EPWP Con&Spec'!B72:K72","v":"2. Assisting in sourcing labour-only domestic sub-contractors and the procurement of materials from local resources, as required by the contractor."}]
[null,{"$f":"+'[1]EPWP Con&Spec'!B73:K73","v":"3. Assisting the contractor by identifying areas of potential conflict and or threats to the project or to stakeholders in the project and recommend appropriate action to the contractor."}]
[null,{"$f":"+'[1]EPWP Con&Spec'!B74:K74","v":"4. Assisting contractor and stakeholders in the project in the resolution of any conflict which may arise."}]
[null,{"$f":"+'[1]EPWP Con&Spec'!B75:K75","v":"5. Establishing and ensuring that sufficient and open communication channels between the contractor and the work force are maintained."}]
[null,{"$f":"+'[1]EPWP Con&Spec'!B76:K76","v":"6. Establish and ensuring that efficient and open communication channels between the contractor and the community are maintained"}]
[null,{"$f":"+'[1]EPWP Con&Spec'!B77:K77","v":"7. Identifying and reporting to the Contractor regarding issues where communication between stakeholder is necessary, recommend courses of action and facilitate such communications"}]
[null,"Carried forward to collection",null,null,"R"]
[]
[null,null,"UNIT","QUANTITY","RATE","AMOUNT"]
[null,{"$f":"+'[1]EPWP Con&Spec'!B78:K78","v":"8. Assisting the Contractor and the work force in the establishment of grievance procedures and necessary recommenda-tion to the Contractor regarding the grievances and solution thereto."}]
[null,{"$f":"+'[1]EPWP Con&Spec'!B79:K79","v":"9. Attending to site meetings and project implementation meetings as required by the Contractor and prepare periodic reports as may be required by the Contractor from time to time."}]
[null,{"$f":"+'[1]EPWP Con&Spec'!B80:K80","v":"10. Attending to such other duties which are consistent with the functions of a CLO, as may be required by the Contractor from time to time."}]
[null,{"$f":"+'[1]EPWP Con&Spec'!B81:K81","v":"Tenderers are to price twice the rate of unskilled local labour rate against this item for any and all costs arising out of compliance with the foregoing and in the event of a Tenderer failing to price against this item or making inadequate financial provision against this item for compliance as aforesaid, then no claim for costs or additional cost incurred will be entertained by the Head: Works"}]
[null,"F:............................. V:............................ T:............................ ","Item"]
[null," "]
[null,{"$f":"+'[1]EPWP Con&Spec'!B84:K84","v":"E12.7 SKILLS DEVELOPMENT ON SITE"}]
[null,{"$f":"+'[1]EPWP Con&Spec'!B85:K85","v":"Contractor in conforming to the object of EPWP that its beneficiaries need to be capacitated with skills that will render them employable in the future. It is then the responsibility of the Contractor that mandatory life skills are provided to 100% of workforce on site and on the job training to labourers from whom the potential for further development has been identified. The latter is not mandatory to all as it covers technical skills."}]
[null," "]
[null,{"$f":"+'[1]EPWP Con&Spec'!B87:K87","v":"Contractor should also make provision for the possibility that there might be local youth that will need to be placed on the project with an intention to be provided support towards improving their level of competency and productivity."}]
[null,{"$f":"+'[1]EPWP Con&Spec'!B89:K89","v":"Contractor shall also provide all necessary on-the-job training to targeted labour to enable such labour to master and advance on techniques required to undertake the work in accordance with requirements of the contract in a manner that does not compromise workers health and safety."}]
[null,"F:............................. V:............................ T:............................ ","Item"]
[]
[null,{"$f":"+'[1]EPWP Con&Spec'!B92:K92","v":"E12.8 LABOUR ONLY Sub Contracting for local emerging enterprises"}]
[null,{"$f":"+'[1]EPWP Con&Spec'!B93:K93","v":"Tenderer’s are advised that this contract is subject to the Expanded Public Works Programme (EPWP) and the following criteria will apply:"}]
[]
[null,{"$f":"+'[1]EPWP Con&Spec'!B95:K95","v":"African Equity Ownership"}]
[null,{"$f":"+'[1]EPWP Con&Spec'!B96:K96","v":"a)     The Tenderer is to allow for  5% of the total value of works to be undertaken by a Priority Population Group.  This percentage excludes the costs of employing local unskilled labour. The allocation of this percentage from the Project, the screening of people, the selection of skills, will be for the Contractor to adjudicate."}]
[null,{"$f":"+'[1]EPWP Con&Spec'!B97:K97","v":"b)      The Priority Population Group consists of women, youth and disabled people."}]
[null,{"$f":"+'[1]EPWP Con&Spec'!B98:K98","v":"c)      The Contractor is to give first option for prospective PPG’s from the surrounding areas of the Project. Should there be insufficient suitable people fitting the criteria of PPG’s, the Contractor may hire people from further afield. This is to be done only after consultation with the Department of Works EPWP Co-ordinator and the Community Liaison Officer (CLO)."}]
[null,{"$f":"+'[1]EPWP Con&Spec'!B99:K99","v":"d)      A Mentor is to be employed by the Contractor, in consultation with the Department of Works for the purposes of quality control and liaison between the Contractor and the selected PPG’s on site. The mentor will be responsible for ensuring an acceptable level of quality workmanship and that such work carried out by the PPG's is executed within the time frames stipulated."}]
[null," "]
[null,{"$f":"+'[1]EPWP Con&Spec'!B101:K101","v":"In so far as possible, the Contractor is encouraged to expand the PPG’s skills, knowledge and performance levels."}]
[]
[null,"F:............................. V:............................ T:............................ ","Item"]
[null,"Carried forward to collection",null,null,"R"]
[]
[null,null,"UNIT","QUANTITY","RATE","AMOUNT"]
[null," "]
[null,{"$f":"+'[1]EPWP Con&Spec'!B104:K104","v":"TENDERER’S TO NOTE CONDITIONS"}]
[null,{"$f":"+'[1]EPWP Con&Spec'!B105:K105","v":"a) The contract to be entered into between the Contractor and the PPG’s will be a LABOUR ONLY sub-contract."}]
[null,{"$f":"+'[1]EPWP Con&Spec'!B106:K106","v":"b) The Contractor will be responsible for ensuring that all materials for use by the PPG’s in the works are to be on site timeously. The Contractor shall liaise with The Mentor and PPG to determine the nature and extent of materials required and the lead time necessary."}]
[null,{"$f":"+'[1]EPWP Con&Spec'!B107:K107","v":"c) The Contractor shall be responsible for the overall programming of the Works and he is to allow for monitoring the PPG’s programme and progress."}]
[null,{"$f":"+'[1]EPWP Con&Spec'!B108:K108","v":"d) In conjunction with the Mentor, he is to allow for the supervision and mentoring (where necessary) of the PPG to ensure quality and adherence to standard building practice"}]
[null,{"$f":"+'[1]EPWP Con&Spec'!B109:K109","v":"e) The Contractor is to allow for extra storage facilities on site for the PPG’s tools and equipment."}]
[null,{"$f":"+'[1]EPWP Con&Spec'!B110:K110","v":"f) Basic tools shall be provided by the PPG’s and where these are not available; the Contractor will supply him with the necessary tools and equipment and deduct the costs thereof from the interim claims made by the PPG."}]
[null,{"$f":"+'[1]EPWP Con&Spec'!B111:K111","v":"g) Work requiring specialized tools will be provided free of chargeby the Contractor with the provision that these be returned upon completion of the Work."}]
[]
[null,{"$f":"+'[1]EPWP Con&Spec'!B113:K113","v":"CO-ORDINATION"}]
[null,{"$f":"+'[1]EPWP Con&Spec'!B114:K114","v":"The Contractor is to co-ordinate the work of all the PPG’s, Sub-Contractors and Nominated Sub- Contractors appointed direct by the Employer in such a manner and at all times as will suit the building programme and he is to allow adequate access, for the PPG’s, where required, to carry out their work in an efficient manner as no claims for extras in this connection will be entertained."}]
[null,"F:............................. V:............................ T:............................ ","Item"]
[]
[null,{"$f":"+'[1]EPWP Con&Spec'!B116:K116","v":"ATTENDANCE"}]
[null,{"$f":"+'[1]EPWP Con&Spec'!B117:K117","v":"The Contractor may allow for attendance upon the PPG’s concerned to execute the work. The Contractor is to allow the PPG’s the use of any scaffolding belonging to him while it remains so erected on the site."}]
[null," "]
[null,{"$f":"+'[1]EPWP Con&Spec'!B119:K119","v":"Where scaffolding is necessary for the use by any PPG and the Contractor has not erected any for his own use or has removed same after his own use, the Contractor shall supply sufficient scaffolding to the PPG to be erected and dismantled by the PPG and returned to the Contractor."}]
[]
[null,{"$f":"+'[1]EPWP Con&Spec'!B121:K121","v":"This attendance upon PPG’s to execute the work is to include for the scaffolding provisions as aforesaid and, in addition, is to include for co-operating to the fullest extent with all the parties, attending on off-loading materials, providing suitable storage for tools and materials used by the PPG’s, use of general facilities such as latrines, etc., supply and cost of power, lighting, water and the like."}]
[null,"F:............................. V:............................ T:............................ ","Item"]
[null," "]
[null,{"$f":"+'[1]EPWP Con&Spec'!B123:K123","v":"E12.9 EPWP CONTRACT FOR LABOUR"}]
[null,{"$f":"+'[1]EPWP Con&Spec'!B124:K124","v":"It is compulsory that shortly after the contractor and or sub contractor has appointed local labour, the employment contract should be signed by both parties, prior to commencement with works on site. The employment contract forms part of the Ministerial Determination or from the regional EPWP officials. Each contract will lapse at the end of each financial year therefore requiring the Contractor  to do a renewal of each contract should the need of employment still exist for that particular labourer."}]
[null,{"$f":"+'[1]EPWP Con&Spec'!B125:K125","v":"F:............................. V:............................ T:....................................."}]
[null," "]
[null,"Carried forward to collection",null,null,"R"]
[]
[null,null,"UNIT","QUANTITY","RATE","AMOUNT"]
[null,{"$f":"+'[1]EPWP Con&Spec'!B127:K127","v":"E12.10 EPWP SCOPE of WORK"}]
[null,{"$f":"+'[1]EPWP Con&Spec'!B128:K128","v":"Note: "}]
[null,{"$f":"+'[1]EPWP Con&Spec'!B129:K129","v":"Contractors are to price any item on the Bill of Quantities having below, bearing in mind that they are regarded as  main sources of job creation, whether sub contracted or undertaken by the main contractor."}]
[null,{"$f":"+'[1]EPWP Con&Spec'!B130:K130","v":" "}]
[null,{"$f":"+'[1]EPWP Con&Spec'!B131:K131","v":"Elements on the scope of work where application of Labour Intensive Construction methods as  will indicated with letters (LI) are regarded feasible are as follows;"}]
[null,{"$f":"+'[1]EPWP Con&Spec'!B132:K132","v":"i)       Excavating trenches for foundations and any other civil works with the  depth not more than 1.5 m "}]
[null,{"$f":"+'[1]EPWP Con&Spec'!B133:K133","v":"ii)      All masonry works which include concrete mixing on site; brickwork; plastering; screed works; jointing; etc."}]
[null,{"$f":"+'[1]EPWP Con&Spec'!B134:K134","v":"iii)     Painting, Plumbing, Ironmongery; roof cladding; glazing; tilling; carpentry; flooring; waterproofing; etc."}]
[null,"F:............................. V:............................ T:............................ ","Item"]
[]
[null,{"$f":"+'[1]EPWP Con&Spec'!B137:K137","v":"Note:"}]
[null,{"$f":"+'[1]EPWP Con&Spec'!B138:K138","v":"It is a general requirement of this contract that persons normally resident in the ward of the works (local labour) be given preference for employment on the contract. Provided, however, that should adequate and appropriate labour not be available within the ward, others may be employed subject to satisfactory proof being provided that every reasonable endeavour has been made to employ local labour (Local Sub-contractor(s); Skilled; Semi-Skilled and Unskilled). The contractor shall in consultation with the local community leaders with the purpose of negotiating with them regarding the utilization of local resources in the construction process. In this regard, the contractor shall furthermore give preference, wherever possible to the employment of single heads of households, women and youth as well as families declared as most indigent by War on Poverty/ Sukuma Sakhe program profiling process. The contractor should aim, in general, to maximise the involvement of the local community, however workers from other communities should not exceed 20% of all persons working on the project, where local employees possess skills at level of competency that meet contractors requirements. "}]
[]
[null,"Payment for the labour-intensive component of the works "]
[null,"Payment for works identified in the Scope of Work as being labour-intensive shall only be made in accordance with the provisions of the Contract if the works are constructed strictly in accordance with the provisions of the Scope of Work. Any non-payment for such works shall not relieve the Contractor in any way from his obligations either in contract or in delict."]
[]
[null,"Linkage of payment for labour-intensive component of works to submission of project data"]
[]
[null,"The Contractor’s payment invoices shall be accompanied by labour information for the corresponding period in a format specified by the employer. If the contractor chooses to delay submitting payment invoices, labour returns shall still be submitted as per frequency and timeframe stipulated by the Employer. The contractor’s invoices shall not be paid until all pending labour information has been submitted."]
[]
[null,"Applicable labour laws"]
[]
[null,"The current Ministerial Determination (also downloadable at www.epwp.gov.za)  Expanded Public Works Programmes, issued in terms of the Basic Conditions of Employment Act of 1997 by the Minister of Labour in Government Notice , shall apply to works described in the scope of work as being labour-intensive and which are undertaken by unskilled or semi-skilled workers."]
[]
[null,"F:............................. V:............................ T:............................ ","Item"]
[null,"Carried forward to collection",null,null,"R"]
[]
[null,null,"UNIT","QUANTITY","RATE","AMOUNT"]
[]
["E13","HIV/AIDS AWARENESS"]
[null,"Tenderers are to price against the following items for compliance with the SPECIFICATION FOR HIV/AIDS AWARENESS  bound into this document (The clauses referred to are those of the Specification for HIV/AIDS)"]
[]
["E13.1","Provide and maintain a condom dispenser in terms of Clause 5.1a) "]
[null,"F:............................. V:............................ T:............................ ","Item"]
["E13.2","Provide and maintain HIV/AIDS awareness posters  terms of Clause 5.1b)"]
[null,"F:............................. V:............................ T:............................ ","Item"]
["E13.3","HIV /Aids Awareness Programme on Site for not less than 90% of workers inclusive of all direct and indirect costs; "]
[]
[null,"Engage a qualified service provider as described in the scope of works to conduct an HIV Awareness Programme  in terms of Clause 5.2.1a) "]
[null,"F:............................. V:............................ T:............................ ","Item"]
[]
["E13.4","Arrange for workers to attend the HIV Awareness Programme in terms of Clause 5.2.1b) "]
[null,"F:............................. V:............................ T:............................ ","Item"]
["E13.5","Reporting"]
[]
[null,"Prepare and attach to claims for payment a brief report in terms of Clause 5.3 (see also HIV/STI Compliance Report included with this document)."]
[null,"F:............................. V:............................ T:............................ ","Item"]
[null,"Note: In the event that the contractor fails to satisfy the requirements of this specification, the employer (Head: Public Works) may apply any of the sanctions provided for in the contract. Sanctions may include the application of a financial penalty of .04% of the Contract Sum per calendar day of which the required reports has not been submitted."]
[]
["E14","OCCUPATIONAL HEALTH AND SAFETY ACT NO. 85 OF 1993"]
[null,"Tenderers are to allow for costs in providing  a project specific ' Construction Phase Safety, Health and Environmental Plan' in accordance with  \"Section 2 - Specification Data associated with SANS 1921-1:2004\" clause C4.18 in \"Part C3 - Scope of Work\""]
[null,"F:............................. V:............................ T:............................ ","Item"]
[]
["E15","NOTICE BOARD, SITE OFFICE, ETC."]
[null,"Tenderers are to allow for the provision and removal of a project notice board and a site office in accordance with the Principal Agent's requirements."]
[null,"F:............................. V:............................ T:............................ ","Item"]
[]
["E16","IMPORTED MATERIALS AND EQUIPMENT"]
[null,"Where imported items are listed in the tender documents, the tenderer shall provide all information called for, failing which the price of any such item, material or equipment shall be excluded from currency fluctuations. (Refer to T2.14 - Schedule of Imported Materials and Equipment."]
[null,"F:............................. V:............................ T:............................ ","Item"]
[]
["E17","CONTRACT DOCUMENTS"]
[null,"The drawings issues with these Tender documents do not comprise the complete set but serves as a guide only for tendering purposes and for indicating the scope of works to enable the Tenderer to acquaint him with the nature and extent of the works and the manner in which they are to be executed."]
[null,"Should any part of the drawings not be clearly legible to the Tenderer he shall, before submitting his Tender, obtain clarification in writing from the principal agent. "]
[null,"F:............................. V:............................ T:............................ ","Item"]
[null,"Carried forward to collection",null,null,"R"]
[]
[null,null,"UNIT","QUANTITY","RATE","AMOUNT"]
[]
["E18","GENERAL PREAMBLES"]
[null,"The Document Preambles will be the “ASAQS Model Preambles for Trades – 2008” and is obtainable from the various Regional Office’s of the Department of Public Works and shall be read in conjunction with the Bills of Quantities and be referred to for the full descriptions of work to be done and materials to be used."]
[null,"F:............................. V:............................ T:............................ ","Item"]
[]
["E19","TRADE NAMES"]
[null,"Wherever a Trade Name for any product has been described in the Bills of Quantities the Tenderer's attention is drawn to the fact that any other product of equal quality may be used subject to the written approval of the Principal Agent being obtained prior to the closing date for submission of Tenders."]
[null,"F:............................. V:............................ T:............................ ","Item"]
[]
[]
["E20","EXISTING PREMISES OCCUPIED"]
[null,"Refer to Scope of Works  Part C3 of this Tender Document for information on the occupation of existing buildings."]
[null,"F:............................. V:............................ T:............................ ","Item"]
[]
["E21","INACCURATE AND DEFECTIVE WORK EXECUTED UNDER PREVIOUS CONTRACT"]
[null,"The contractor shall, after taking possession of the site and before commencing the work, check all levels, liners, profiles and the like and satisfy himself as to the dimensional accuracy of all work executed under the previous contract which may affect his work."]
[null,"Should any inaccurate or defective work be found, the contractor shall immediately notify the principal agent in writing requesting his instructions with regard thereto and afford every facility to those rectifying such inaccurate or defective work."]
[null,"F:............................. V:............................ T:............................ ","Item"]
[]
["E22","VIEWING THE SITE IN SECURITY AREAS"]
[null,"If the site is situated in a security area and the Tenderder must arrange with the Authorities to obtain permission to enter the site for Tenderding purposes."]
[null,"F:............................. V:............................ T:............................ ","Item"]
[]
["E23","COMMENCEMENT OF WORKS IN SECURITY AREAS"]
[null,"If the works falls within a security area, the contractor must arrange with the Authorities and give the necessary notices before commencement of the works. Should the contractor fail to make such arrangements, admission to the site may be refused and any additional costs will be for the contractor's account."]
[null,"F:............................. V:............................ T:............................ ","Item"]
[]
["E24","ENTRANCE PERMITS TO SECURITY AREAS"]
[null,"If the works fall within a security area, the contractor shall obtain entrance permits for his personnel and workmen entering the area and shall comply with all regulations and instructions which may be issued from time to time regarding the protection of persons and property under control of the Authority."]
[null,"F:............................. V:............................ T:............................ ","Item"]
[null,"Carried forward to collection",null,null,"R"]
[]
[null,null,"UNIT","QUANTITY","RATE","AMOUNT"]
[]
["E25","SECURITY CHECK OF PERSONNEL"]
[null,"The principal agent may require the contractor to have his personnel and workmen, or a certain number of them, security classified."]
[null,"In the event of the principal agent requesting the removal of a person or persons from the works for security reasons, the contractor shall do so forthwith and shall thereafter ensure that such person or persons are denied access to the works and the site and/or to any document or information relating to the works."]
[null,"F:............................. V:............................ T:............................ ","Item"]
[]
["E26","PROHIBITION ON TAKING PHOTOGRAPHS"]
[null,"In terms of article 119 of the Defence Act, 44 of 1957, it is prohibited to sketch or to take photographs of any military site or installation or any building or civil works thereon or to be in possession of a camera or other apparatus used for taking photographs, except when authorised thereto by or on behalf of the Minister."]
[null,"The same prohibition is also applicable to all Correctional Institutions in terms of article 44.1(e) of the Correctional Services Act 8 of 1959."]
[null,"F:............................. V:............................ T:............................ ","Item"]
[]
["E27","Management of Water                                                                            Water for Construction purposes must be obtained from alternative water sources (i.e. supply other than water that is produced and distributed by a regulated water service authority from a licenced water treatment works for human consumption), eg dams, rivers, boreholes, springs, rainwater harvesting, recycled sewerage water,etc. The alternative water source shall not be of an inferior quality / standard than that required for construction purposes. The client reserves the rigfht through his agents to test such supplies or request certificates confirming the grade and nature of the water supply. Relevant knowledge of the respective area will be an advantage. "]
{"$rows_empty":37}
[null,"Carried forward to collection",null,null,"R"]
[]
["SECTION 1"]
[]
["SUMMARY – PRELIMINARY & GENERAL"]
["Collection",null,null,"Page No.","Amount"]
[]
[{"$nulls":3},1,"R"]
[]
[{"$nulls":3},2,"R"]
[]
[{"$nulls":3},3,"R"]
[]
[{"$nulls":3},4,"R"]
[]
[{"$nulls":3},5,"R"]
[]
[{"$nulls":3},6,"R"]
[]
[{"$nulls":3},7,"R"]
[]
[{"$nulls":3},8,"R"]
[]
[{"$nulls":3},9,"R"]
[]
[{"$nulls":3},10,"R"]
[]
[{"$nulls":3},11,"R"]
[]
[{"$nulls":3},12,"R"]
[]
[{"$nulls":3},13,"R"]
[]
[{"$nulls":3},14,"R"]
[]
[{"$nulls":3},15,"R"]
[]
[{"$nulls":3},16,"R"]
{"$rows_empty":13}
[{"$nulls":3}," "," "]
[]
[]
["Carried forward to Final Summary",{"$nulls":3},"R"]
["Section No. 1"]
["Preliminary & General"]
["Summary"]

{"sheet":"C2.3_BOQ - Fly","index":6,"n_rows":16,"n_cols":1,"rows_kept":16,"merged":[[1,0,1,10],[15,0,15,9]]}
[]
[{"$f":"+'[1]Master Data'!E18","v":"ZNT 04280 W: DEPARTMENT OF HEALTH: MBONGOLWANE: WIMS NO. 056687: MBONGOLWANE HOSPITAL: PROVISION OF TWO BOREHOLES WITH BOOSTER PUMP AND WATER TREATMENT SYSTEM\t"}]
{"$rows_empty":13}
["PART C2.3  BILL OF QUANTITIES"]

{"sheet":"UNPRICED BOQ","index":7,"n_rows":116,"n_cols":7,"rows_kept":116,"merged":[[0,0,0,6],[1,0,1,1],[2,0,2,1],[3,1,3,2],[4,0,4,6],[8,1,8,6],[9,1,9,6],[11,1,11,2],[12,1,12,2],[13,1,13,2],[14,1,14,2],[15,1,15,2],[16,1,16,2],[17,1,17,2],[18,1,18,2],[21,1,21,2],[22,1,22,2],[24,1,24,2],[25,1,25,2],[26,1,26,2],[29,1,29,2],[30,1,30,2],[31,1,31,2],[34,1,34,2],[35,1,35,2],[36,1,36,2],[39,1,39,2],[40,1,40,2],[41,1,41,2],[45,1,45,2],[46,1,46,2],[47,1,47,2],[49,1,49,2],[50,1,50,2],[51,1,51,2],[54,1,54,2],[55,1,55,2],[56,1,56,2],[58,1,58,2],[59,1,59,2],[60,1,60,2],[63,1,63,2],[64,1,64,2],[65,1,65,2],[66,1,66,2],[67,1,67,2],[68,1,68,2],[69,1,69,2],[70,1,70,2],[71,1,71,2],[73,1,73,2],[75,1,75,2],[76,1,76,2],[77,1,77,2],[78,1,78,2],[79,1,79,2],[80,1,80,2],[82,1,82,2],[85,1,85,2],[87,1,87,2],[91,1,91,2],[93,1,93,2],[94,1,94,2],[95,1,95,2],[96,1,96,2],[97,1,97,2],[99,1,99,2],[100,1,100,2],[101,1,101,2],[102,1,102,2],[103,1,103,2],[104,1,104,2],[105,1,105,2],[106,1,106,2],[107,1,107,2],[108,1,108,2],[109,1,109,2],[110,1,110,2],[111,1,111,2],[112,1,112,2],[115,1,115,2]]}
["BILL  OF  QUANTITIES  FOR  BOREHOLE DRILLING"]
["Client Name:",null,"Department of Health"]
["B/Hole Contract:"]
["Item","Description",null,"Unit","Qty","Rate","Total"]
["SECTION NO.2 "]
[null,"SECTION NO. 2"]
[null,"BILL NO.1"]
[null,"BOREHOLE INSTALLATION (PROVISIONAL)"]
[null,"The Tenderer is referred to the \"KwaZulu Natal: Department of Health Standard Preambles to all Trades - January 2009 (Rev 3)\" for supplementary and comprehensive expansion of descriptions, appropriate provision for which shall be deemed to have been included in all relevant rates"]
[null,"Registration with the Borehole Water Association of South Africa (BWA) AND Ground Water Association of KwaZulu-Natal (GAKZN) is required"]
[null,{"$f":"'[7]Table 16'!$A$4","v":"DRILLING"},null,"Unit ","Qty","Rate","Total"]
[null,"CONCRETE, FORMWORK AND REINFORCEMENT"]
[null,"NOTE:"]
[null,"For preambles see Standard Preambles to All Trades - WB20 and Supplementary Preambles - pages SUP1 to SUP6."]
[null,"Tenderers are to allow in the rates tendered for all concrete with a compression strength equal to or greater than 20 MPa, for all concrete testing as specified in TESTS on page SP13 of the Standard Preambles to all Trades."]
[null,"No separate item against which any allowance for costs, in connection with the tests, has been included in this document."]
[null,"VIBRATED REINFORCED CONCRETE"]
[null,"25 MPa / 19mm Concrete:"]
[1,"Strip footings, bases, etc., cast against excavated surfaces.",null,{"$f":"\"m\"&CHAR(179)","v":"m³"},3]
[]
[]
[null,"Carried to final summary"]
[null,"DRILLING"]
[null,"Drilling with foam from 0 to 100m"]
[2,"Drilling 165mm diameter",null,"m",200]
[3,"Drilling 203mm diameter",null,"m",100]
[4,"Drilling exceeding 254m to not exceeding 305 diameter",null,"m","-",null,"Rate Only"]
[]
[null,"Drilling with foam from 101 to 150m"]
[5,"Drilling 165mm diameter",null,"m",100]
[6,"Drilling 203mm diameter",null,"m",100]
[7,"Drilling exceeding 254m to not exceeding 305 diameter",null,"m","-",null,"Rate Only"]
[]
[null,"Drilling with foam from 151 to 300m"]
[8,"Drilling 165mm diameter",null,"m","-",null,"Rate Only"]
[9,"Drilling 203mm diameter",null,"m","-",null,"Rate Only"]
[10,"Drilling exceeding 254m to not exceeding 305 diameter",null,"m","-",null,"Rate Only"]
[]
[null,"Mud Flush up to 100m"]
[11,"Drilling 165mm diameter",null,"m",100]
[12,"Drilling 203mm diameter",null,"m","-",null,"Rate Only"]
[13,"Drilling exceeding 254m to not exceeding 305 diameter",null,"m","-",null,"Rate Only"]
[null,"Drilling with foams (Highly abrasive rocks)"]
[]
[null,"Drilling with foam from 0 to 100m"]
[14,"Drilling 165mm diameter",null,"m",100]
[15,"Drilling 203mm diameter",null,"m","-",null,"Rate Only"]
[16,"Drilling exceeding 254m to not exceeding 305 diameter",null,"m","-",null,"Rate Only"]
[null,"Drilling with foam from 101 to 150m"]
[17,"Drilling 165mm diameter",null,"m","-",null,"Rate Only"]
[18,"Drilling 203mm diameter",null,"m","-",null,"Rate Only"]
[19,"Drilling exceeding 254m to not exceeding 305 diameter",null,"m","-",null,"Rate Only"]
[]
[null,"Drilling with foam from 151 to 300m"]
[20,"Drilling 165mm diameter",null,"m","-",null,"Rate Only"]
[21,"Drilling 203mm diameter",null,"m","-",null,"Rate Only"]
[22,"Drilling exceeding 254m to not exceeding 305 diameter",null,"m","-",null,"Rate Only"]
[]
[23,"Supply and Install 152mm dia plain steel casings",null,"m",150]
[24,"Supply and Install 152mm dia plasma cut steel  casings",null,"m",74]
[25,"Supply and Install gravel pack in the borehole",null,"Ton",8]
[]
[null,"Reaming of Borehole"]
[26,"For 165mm diameter",null,"m","-",null,"Rate Only"]
[27,"For 203mm diameter",null,"m","-",null,"Rate Only"]
[28,"For 254m to not exceeding 305 diameter",null,"m","-",null,"Rate Only"]
[null,"carried to final summary"]
[29,"Allowance for sanitary seal of the borehole",null,"No",2]
[30,"Allowance for disinfection of the borehole tanks, water injection systems and useage of drilling foam",null,"No",2]
[31,"Allowance for data recording and report complete, water chemical report",null,"No",2]
[32,"Allowance for standing time",null,"Hour","-",null,"Rate Only"]
[33,"Allowance for Borehole rehabilitation drilling rig with foam",null,"Hour","-",null,"Rate Only"]
[]
[34,"Allow for borehole development work (surging by air of completed well until the water is clean (Approx. 4 hrs)",null,"Hr",4]
[]
[35,"Allow to the cost of:-"]
[null,"(a) Reaming and boring.",null,"M","-",null,"Rate Only"]
[null,"(b) Insert, remove temporary casing etc.",null,"Hr","-",null,"Rate Only"]
[null,"(c) Insert 9\" of temporary casing permanently.",null,"M","-",null,"Rate Only"]
[null,"(d) Setting time.",null,"Ls","-",null,"Rate Only"]
[null,"(e) Bentonite seal.",null,"Ls","-",null,"Rate Only"]
[]
[36,"Pump testing completed well.  Time taken to install and remove pump, will be charged at same hourly rate",null,"Hr",48]
[]
[]
[37,"Standby charges for reasons beyond the Contractor's control excluding force majeure conditions",null,"Hr",2]
[]
[38,"Borehole Completion Data and Water Chemical Analysis Report",null,"Item",2]
[]
[null,"PUMP TESTING"]
[]
[39,"Supply and installation of one submersible pump capable of pumping 3m3/hr at a head of 90m including control panel, electrodes, electrode cable, underground cables float switch and various installation accessories",null,"Item",2]
[]
[]
[null,"Water treatment plant "]
[40,"Allow for water treatment plant including positioning on a100mm thick 10 x 3m 20 MPa concrete slab casted on a 50mm excavated and compacted surface. Covered with a steel cage which is roofed with corrugated iron and 4 x 2500l storage tank.",null,"Item",1]
[]
[null,"Geohydrological Specialist to assist with all Geohydrological work ",null,"Item",1]
[]
[null,"PUMP INSTALLATION"]
[null,"Single phase submersible pump minimum of 1.5kW – 230Volts motor capable of pumping a minimum 2000l/h at a head of 90m",null,"No",2]
[null,"Allow connection to existing Main DB board including 15 Amp isolator, lightning arrestors and labelling",null,"No",2]
[null,"Pump control panel complete with circuit breaker, lightning arrestors, starter, overload protection, low and high level sensor protection for borehole and tank (inter phasing) complete installed in a galvanised steel lockable box.",null,"No",2]
[null,"6mm² x 4 core Submersible pump cable",null,"m ",100]
[null,"6mm² x 4 core 600/1000V VC/SWA/PVC/PVC grade copper cable in ground including 1000mm excavation, back filling, compaction, etc.",null,"m ",68]
[null,"Cable termination of 6mm² x 4 core cable",null,"No.",4]
[null,"Isolator with enclosure installed in manhole at borehole",null,"Item",2]
[null,"Allow for level control probes (high/low) complete installed in water tank inter phased with level protector of pump installation including all wiring etc",null,"Item",2]
[null,"Allow for earthing installation including 2m earth spike and 3m 16mm PVC wire to minimize lightning attacks.",null,"Item",1]
[null,"Provide certificate of compliance for electrical installation",null,"Item",1]
[null,"WATER PURIFICATION"]
[null,"Provide the allowance not exceeding R220 500.00 nett for water purification Treatment inclucive of all required connections. NOTE: These quantities are provisional and all works will be re-measured after completion.",null,"No.",1]
[null,"Allow for profit and attendance if required",null,"No.",1]
[]
[]
[null,"Carried to final summary"]